bitfinex/quotes_SOLUSD_20240603
["timestamp","ask_amount","ask_price","bid_price","bid_amount"]
[1717428949385,13.5773,164.84,164.81,2.245]
[1717428950112,7.1,164.83,164.81,2.245]
[1717428951385,7.1,164.83,164.82,2.2448]
[1717428951792,13.5773,164.84,164.82,2.2448]
[1717428952489,7.1,164.83,164.82,2.2448]
[1717428952794,7.1,164.83,164.81,2.2449]
[1717428953597,13.5773,164.84,164.81,2.2449]
[1717428954847,13.5773,164.84,164.82,2.2448]
[1717428955146,6.4773,164.84,164.82,2.2448]
[1717428955327,0.2,164.84,164.82,2.2448]
[1717428956210,0.2,164.84,164.83,2.2447]
[1717428959028,0.2,164.84,164.82,2.2448]
[1717428959336,0.2,164.84,164.83,2.2447]
[1717428961135,13.6039,164.84,164.8,20.0]
[1717428961343,6.5039,164.84,164.79,20.0]
[1717428961542,7.1,164.83,164.81,2.2449]
[1717428961936,7.1,164.83,164.82,2.2448]
[1717428962844,7.1,164.83,164.81,2.2449]
[1717428963143,7.1,164.82,164.81,2.2449]
[1717428963323,7.1,164.82,164.78,4.4907]
[1717428963324,7.1,164.82,164.8,2.2451]
[1717428963650,7.1,164.82,164.81,2.245]
[1717428964864,7.1,164.83,164.82,2.2448]
[1717428966848,13.6039,164.84,164.82,2.2448]
[1717428967435,0.2,164.84,164.82,2.2447]
[1717428967737,0.2,164.84,164.83,2.2447]
[1717428968529,0.2,164.84,164.82,2.2448]
[1717428969870,0.2,164.84,164.83,2.2447]
[1717428972978,0.2,164.84,164.82,47.2448]
[1717428973147,0.2,164.84,164.83,2.2447]
[1717428973468,0.2,164.84,164.8,33.48914646]
[1717428973469,7.3,164.84,164.82,2.2448]
[1717428973671,7.1,164.83,164.82,2.2448]
[1717428974266,7.3,164.84,164.82,2.2448]
[1717428974567,0.2,164.84,164.83,2.2447]
[1717428979567,7.3,164.84,164.83,2.2447]
[1717428979775,0.2,164.84,164.83,2.2447]
[1717428981778,0.2,164.84,164.72,291.63566713]
[1717428981779,6.4797,164.82,164.81,8.99840052]
[1717428981981,6.4797,164.81,164.79,8.99840052]
[1717428982184,0.2,164.84,164.8,2.88483075]
[1717428982476,0.2,164.84,164.83,11.24291505]
[1717428982858,0.2,164.84,164.83,14.12641162]
[1717428983382,0.2,164.84,164.83,5.12819657]
[1717428983855,0.2,164.84,164.83,32.22819657]
[1717428984063,0.2,164.84,164.83,77.22819657]
[1717428984486,0.2,164.84,164.83,70.12819657]
[1717428984689,0.2,164.84,164.83,77.22819657]
[1717428985224,0.2,164.84,164.83,70.12819657]
[1717428985801,0.2,164.84,164.83,77.22819657]
[1717428988268,0.2,164.84,164.83,70.12819657]
[1717428988475,0.2,164.84,164.83,79.1185104]
[1717428989037,0.2,164.84,164.83,25.12819657]
[1717428989164,0.2,164.84,164.83,2.2447]
[1717428990574,0.2,164.84,164.83,9.3447]
[1717428991596,0.2,164.84,164.83,2.2447]
[1717428992099,0.2,164.84,164.82,9.3448]
[1717428992673,0.2,164.84,164.83,2.2447]
[1717428994197,0.2,164.84,164.83,9.3447]
[1717428996792,0.2,164.84,164.83,74.3447]
[1717428998399,0.2,164.84,164.83,22.2447]
[1717428998598,0.2,164.84,164.83,29.3447]
[1717429000310,0.2,164.84,164.83,38.33743184]
[1717429001198,0.2,164.84,164.83,45.70893149]
[1717429001398,0.2,164.84,164.83,90.87893149]
[1717429002711,0.2,164.84,164.83,91.04893149]
[1717429002917,0.2,164.84,164.83,88.79039965]
[1717429003425,0.2,164.84,164.83,97.76929965]
[1717429004525,0.2,164.84,164.83,99.17271711]
[1717429004912,0.2,164.84,164.83,105.56111711]
[1717429007421,1.1429656,164.87,164.84,6.2405]
[1717429007632,1.1429656,164.87,164.86,38.51920931]
[1717429007804,1.1429656,164.87,164.86,58.85920931]
[1717429008000,1.1429656,164.87,164.86,97.76519965]
[1717429011629,1.1429656,164.87,164.86,90.66519965]
[1717429011937,1.1429656,164.87,164.86,106.73900663]
[1717429013029,1.1429656,164.87,164.86,97.76519965]
[1717429017331,1.1429656,164.87,164.86,106.73416855]
[1717429018348,1.1429656,164.87,164.86,97.76519965]
[1717429019569,1.1429656,164.87,164.86,106.73116387]
[1717429019935,1.1429656,164.87,164.86,97.76519965]
[1717429021071,1.1429656,164.87,164.86,90.66519965]
[1717429021356,1.1429656,164.87,164.86,106.72964478]
[1717429021583,1.1429656,164.87,164.86,87.7831]
[1717429021749,1.1429656,164.87,164.86,103.84827137]
[1717429022673,1.1429656,164.87,164.86,51.40827137]
[1717429022836,1.1429656,164.87,164.86,49.5431]
[1717429023961,1.1429656,164.87,164.86,38.50827137]
[1717429024157,1.1429656,164.87,164.86,83.50827137]
[1717429024669,1.1429656,164.87,164.86,74.8831]
[1717429024967,1.1429656,164.87,164.86,86.71690449]
[1717429025270,1.1429656,164.87,164.86,97.7561246]
[1717429026040,1e-08,164.87,164.86,97.7561246]
[1717429026361,1e-08,164.87,164.86,104.8561246]
[1717429027052,1e-08,164.87,164.86,111.2445246]
[1717429030040,1e-08,164.87,164.86,104.8561246]
[1717429031866,1e-08,164.87,164.86,90.6561246]
[1717429032062,1e-08,164.87,164.86,97.7561246]
[1717429032366,1e-08,164.87,164.86,90.6561246]
[1717429032666,1e-08,164.87,164.86,97.7561246]
[1717429033047,1e-08,164.87,164.86,90.6561246]
[1717429033248,1e-08,164.87,164.86,97.7561246]
[1717429033446,1e-08,164.87,164.86,106.70422185]
[1717429033754,1e-08,164.87,164.86,34.26422185]
[1717429033956,1e-08,164.87,164.86,41.36422185]
[1717429034175,1e-08,164.87,164.86,32.4161246]
[1717429034379,1e-08,164.87,164.86,29.5431]
[1717429034696,1e-08,164.87,164.86,38.49255277]
[1717429034971,1e-08,164.87,164.86,31.75965277]
[1717429035178,1e-08,164.87,164.86,22.8102]
[1717429035352,1e-08,164.87,164.86,13.8329]
[1717429036059,6.37540001,164.87,164.86,6.7329]
[1717429036267,6.37540001,164.87,164.86,26.7329]
[1717429036657,6.37540001,164.87,164.86,2.2443]
[1717429039667,21.71320001,164.87,164.86,2.2443]
[1717429039871,6.3106,164.86,164.84,8.95236332]
[1717429040069,6.3106,164.85,164.84,2.2446]
[1717429040272,15.3378,164.85,164.83,3.64801746]
[1717429040575,6.3106,164.84,164.83,2.2447]
[1717429042393,6.616,164.86,164.85,2.2443]
[1717429042678,1e-08,164.87,164.86,2.2443]
[1717429044048,1e-08,164.87,164.86,47.2443]
[1717429045676,1e-08,164.87,164.86,54.3443]
[1717429046064,1e-08,164.87,164.86,58.8329]
[1717429046304,0.2,164.94,164.92,120.0]
[1717429046602,0.2,164.94,164.93,101.262]
[1717429046759,0.2,164.94,164.93,104.12826707]
[1717429047083,0.2,164.94,164.93,97.73986707]
[1717429048973,0.2,164.94,164.93,90.63986707]
[1717429049159,0.2,164.94,164.93,97.73986707]
[1717429049869,0.2,164.94,164.93,90.63986707]
[1717429050581,0.2,164.94,164.93,87.7736]
[1717429050759,0.2,164.94,164.93,6.73]
[1717429050961,0.2,164.94,164.93,2.2433]
[1717429051178,0.2,164.94,164.93,4.670891]
[1717429051561,0.2,164.94,164.93,24.861191]
[1717429052290,0.2,164.94,164.93,44.861191]
[1717429052478,0.2,164.94,164.93,90.201191]
[1717429053885,0.2,164.94,164.93,93.06851485]
[1717429054670,0.8096359,165.02,165.01,2.2422]
[1717429055001,7.2195359,165.02,165.01,2.2422]
[1717429056177,0.8096359,165.02,165.01,33.6235]
[1717429056478,0.8096359,165.02,165.01,72.0667]
[1717429057890,0.8096359,165.02,165.01,67.2422]
[1717429058103,7.3257359,165.02,165.01,67.2422]
[1717429058274,7.3257359,165.02,165.01,22.2422]
[1717429058474,7.3257359,165.02,165.01,2.2422]
[1717429059891,7.3257359,165.02,165.01,47.2422]
[1717429060780,0.8096359,165.02,165.01,47.2422]
[1717429061003,0.2,165.04,165.03,2.242]
[1717429061210,0.2,165.04,165.03,2.582]
[1717429062100,0.2,165.04,165.03,8.5783378]
[1717429062285,0.2,165.04,165.03,72.066]
[1717429065803,0.2,165.04,165.03,71.896]
[1717429066497,0.2,165.04,165.03,22.242]
[1717429067026,0.2,165.04,165.03,2.242]
[1717429068003,0.2,165.04,165.03,2.412]
[1717429068199,0.2,165.04,165.03,2.242]
[1717429070601,6.4307,165.04,165.03,2.242]
[1717429079610,6.3627,165.02,165.01,2.2421]
[1717429080422,6.3627,165.02,165.0,2.2424]
[1717429080611,15.1795,165.03,164.97,8.9711]
[1717429080932,15.1795,165.03,165.0,2.2423]
[1717429081113,21.8254,165.02,164.99,2.2425]
[1717429081325,16.6497,165.01,164.99,2.2425]
[1717429081614,6.396,165.0,164.99,2.2425]
[1717429082208,22.6567,165.01,164.94,4.4864]
[1717429082408,22.6567,165.01,164.92,4.487]
[1717429082409,2.2423,165.01,164.92,4.487]
[1717429082606,21.3861,164.98,164.92,4.487]
[1717429082807,21.3861,164.98,164.92,2.2434]
[1717429083030,21.3861,164.98,164.88,4.488]
[1717429083245,23.6288,164.98,164.92,2.2434]
[1717429083607,2.2428,164.97,164.92,2.2434]
[1717429083811,16.5082,164.96,164.92,2.2434]
[1717429084042,23.1057,164.96,164.92,2.2434]
[1717429084212,16.5082,164.96,164.92,2.2434]
[1717429084412,6.1108,164.94,164.92,2.2434]
[1717429084629,15.7517,164.95,164.92,2.2434]
[1717429084815,6.1108,164.93,164.92,2.2434]
[1717429085218,15.7517,164.95,164.91,2.2436]
[1717429085219,6.1108,164.92,164.91,2.2436]
[1717429086717,6.5643,164.91,164.9,2.2437]
[1717429088040,6.0577,164.91,164.89,2.2439]
[1717429088227,6.0577,164.9,164.89,2.2439]
[1717429088757,6.0577,164.95,164.9,2.2436]
[1717429088939,6.1162,164.95,164.9,2.2436]
[1717429089446,6.1162,164.93,164.9,2.2436]
[1717429090050,6.4605,164.93,164.89,2.2439]
[1717429090231,6.4605,164.92,164.89,2.2439]
[1717429090639,6.4605,164.92,164.9,2.2437]
[1717429091020,2.2431,164.95,164.91,2.2436]
[1717429091021,6.3492,164.95,164.91,2.2436]
[1717429091224,6.2376,164.95,164.89,4.4878]
[1717429091445,16.5015,165.01,164.9,45.0]
[1717429091617,643.1,165.23,164.91,31.2179]
[1717429091618,22.7391,164.99,164.91,31.2179]
[1717429091820,36.38,165.06,164.91,31.2179]
[1717429091821,2.2426,164.98,164.93,2.2432]
[1717429092128,6.0382,164.97,164.93,2.2432]
[1717429092336,18.3771,164.98,164.93,2.2432]
[1717429092645,6.0382,164.96,164.94,2.2432]
[1717429093141,2.2428,164.97,164.92,2.2434]
[1717429093340,18.5154,164.97,164.92,2.2434]
[1717429093653,6.261,164.95,164.92,2.2434]
[1717429093832,6.261,164.95,164.93,2.2433]
[1717429094034,6.261,164.95,164.94,2.2432]
[1717429094230,8.8157,165.01,164.92,4.4869]
[1717429094432,6.5733,165.0,164.97,2.2428]
[1717429094834,6.5733,165.0,164.98,2.2426]
[1717429095548,6.5733,165.0,164.97,2.2427]
[1717429095720,6.5733,165.0,164.98,2.2426]
[1717429096451,6.5733,165.0,164.94,11.2158]
[1717429096623,15.588,165.03,165.0,2.2423]
[1717429096822,15.588,165.03,164.99,2.2425]
[1717429097025,6.2736,165.02,164.99,2.2425]
[1717429097528,6.6152,165.01,164.98,2.2426]
[1717429099222,6.6152,165.01,164.96,20.0]
[1717429099223,6.1562,165.0,164.96,2.2428]
[1717429099445,6.96801089,164.99,164.96,2.2428]
[1717429099749,6.1562,164.98,164.95,2.243]
[1717429100329,6.1562,164.98,164.94,2.2431]
[1717429100532,6.0389,164.97,164.93,2.2432]
[1717429100730,6.0389,164.97,164.9,4.4874]
[1717429100731,2.2427,164.98,164.94,2.2432]
[1717429100948,6.0389,164.97,164.94,2.2432]
[1717429101954,6.4673,164.97,164.94,2.2432]
[1717429102160,6.4673,164.97,164.95,2.243]
[1717429103849,6.4673,164.97,164.96,2.2429]
[1717429104058,6.4673,164.97,164.95,2.243]
[1717429105260,2.2429,164.97,164.9,11.2186]
[1717429105452,6.54,164.96,164.91,20.0]
[1717429106151,6.4973,164.96,164.93,2.2432]
[1717429106468,6.4973,164.96,164.9,11.2186]
[1717429106469,6.4973,164.95,164.87,20.1967]
[1717429106673,6.4973,164.95,164.9,2.2436]
[1717429106674,6.4973,164.94,164.9,2.2436]
[1717429107060,6.4973,164.94,164.91,2.2436]
[1717429107267,6.3839,164.99,164.89,8.9756]
[1717429107569,2.2425,164.99,164.91,11.218]
[1717429107759,6.4553,164.98,164.94,2.2431]
[1717429108479,6.4553,164.98,164.95,2.243]
[1717429108649,2.2425,164.99,164.92,4.4869]
[1717429108846,6.4231,165.03,164.93,49.4865]
[1717429109073,8.6654,165.01,164.97,2.2428]
[1717429109382,8.6655,165.0,164.96,2.2429]
[1717429109749,8.6655,165.0,164.95,2.243]
[1717429109949,2.2425,164.99,164.95,2.243]
[1717429110150,8.6656,164.99,164.94,2.2431]
[1717429110376,6.4231,164.98,164.94,2.2431]
[1717429110871,6.4231,164.98,164.95,2.243]
[1717429112886,8.4145,164.98,164.91,6.7308]
[1717429113059,6.1718,164.97,164.93,2.2433]
[1717429114682,6.1718,164.97,164.94,2.2432]
[1717429115374,6.1718,164.97,164.93,2.2433]
[1717429115554,8.4146,164.97,164.93,2.2433]
[1717429115862,6.1718,164.97,164.94,2.2432]
[1717429116065,8.6325,164.99,164.95,2.243]
[1717429116277,8.6325,164.99,164.94,2.2431]
[1717429117160,6.3899,164.99,164.95,2.243]
[1717429117355,8.6324,164.99,164.95,2.243]
[1717429118180,8.6324,164.99,164.94,2.2431]
[1717429118756,6.3899,164.99,164.94,2.2431]
[1717429118951,2.2426,164.98,164.94,2.2431]
[1717429119961,8.8673,164.98,164.94,2.2431]
[1717429120167,8.8673,164.98,164.93,2.2433]
[1717429120373,8.8673,164.98,164.94,2.2432]
[1717429121387,6.6247,164.98,164.94,2.2432]
[1717429121966,6.6247,164.98,164.94,9.3032]
[1717429124383,8.8674,164.98,164.94,2.2432]
[1717429124798,2.2428,164.97,164.93,2.2433]
[1717429124965,8.7648,164.97,164.91,20.0]
[1717429125166,8.7648,164.97,164.93,7.06]
[1717429125365,6.522,164.97,164.93,2.2433]
[1717429125580,6.522,164.97,164.93,9.3033]
[1717429125760,6.522,164.97,164.94,2.2432]
[1717429125960,6.522,164.97,164.93,2.2433]
[1717429126177,6.522,164.97,164.93,9.3033]
[1717429126387,6.522,164.97,164.93,2.2433]
[1717429127487,8.7648,164.97,164.93,2.2433]
[1717429127680,6.522,164.97,164.93,2.2433]
[1717429128771,2.2426,164.99,164.94,7.06]
[1717429129070,6.5857,164.99,164.95,2.243]
[1717429129277,8.8282,164.99,164.95,2.243]
[1717429130292,8.8282,164.99,164.94,9.3031]
[1717429132893,8.4051,164.98,164.93,2.2433]
[1717429133060,6.1624,164.97,164.93,9.3033]
[1717429133265,6.1624,164.97,164.93,2.2433]
[1717429133894,6.1624,164.97,164.94,2.2431]
[1717429136095,6.1624,164.97,164.95,2.243]
[1717429136286,6.1624,164.97,164.93,7.06]
[1717429136702,6.1624,164.97,164.92,45.0]
[1717429137004,6.1624,164.97,164.94,2.2432]
[1717429137900,6.1624,164.97,164.95,2.243]
[1717429138596,2.2426,164.99,164.95,2.243]
[1717429138810,8.6957,164.99,164.95,2.243]
[1717429140308,6.4531,164.99,164.95,2.243]
[1717429140603,6.2912,164.98,164.94,2.2432]
[1717429140981,8.5341,164.97,164.92,45.0]
[1717429141205,8.5341,164.97,164.93,2.87957564]
[1717429141374,6.2912,164.97,164.93,5.12287564]
[1717429141579,6.2912,164.97,164.94,2.2432]
[1717429143403,6.2912,164.97,164.93,2.2433]
[1717429143404,6.1809,164.96,164.93,2.2433]
[1717429145379,6.1809,164.96,164.92,2.2434]
[1717429145578,6.5954,164.95,164.91,2.2435]
[1717429145779,15.8985,164.95,164.92,2.88256726]
[1717429145978,13.6554,164.95,164.92,2.88256726]
[1717429146206,6.5954,164.95,164.92,2.2434]
[1717429147183,13.1423,164.97,164.93,2.2433]
[1717429147602,6.0823,164.97,164.93,2.2433]
[1717429148108,8.3251,164.97,164.92,9.3034]
[1717429148408,15.3851,164.97,164.92,9.3034]
[1717429148700,6.0823,164.97,164.93,2.2433]
[1717429149008,15.3851,164.97,164.93,2.2433]
[1717429150506,6.0823,164.97,164.93,2.2433]
[1717429150711,13.1423,164.97,164.93,2.2433]
[1717429151310,6.6006,164.96,164.93,2.2433]
[1717429154528,13.6606,164.96,164.93,2.2433]
[1717429154696,6.6006,164.96,164.93,2.2433]
[1717429154896,6.6006,164.96,164.94,2.2432]
[1717429156329,15.5132,164.98,164.94,2.2432]
[1717429157818,6.2105,164.98,164.95,2.243]
[1717429157997,8.6257,164.99,164.94,2.2431]
[1717429158400,9.53378449,165.04,164.96,7.06]
[1717429158599,2.2421,165.02,164.97,9.3027]
[1717429158903,2.2422,165.02,164.97,2.2427]
[1717429159102,2.2422,165.02,164.97,9.3027]
[1717429160497,2.2422,165.01,164.97,9.3027]
[1717429160698,2.2422,165.01,164.97,7.06]
[1717429161717,2.2421,165.02,164.98,2.2426]
[1717429161925,2.2421,165.02,164.97,9.3027]
[1717429162293,2.2423,165.01,164.97,9.3027]
[1717429162697,2.2422,165.02,164.97,9.3027]
[1717429162925,2.2423,165.01,164.97,2.2427]
[1717429163229,2.2424,165.0,164.95,22.2429]
[1717429163402,2.2424,165.0,164.95,29.3029]
[1717429163605,2.2426,164.99,164.94,2.2431]
[1717429164515,15.6268,165.0,164.95,2.243]
[1717429165130,6.3244,164.99,164.9,19.8506]
[1717429165314,15.6271,164.98,164.93,2.2432]
[1717429166013,7.06,164.97,164.93,2.2432]
[1717429166329,13.3844,164.98,164.94,2.2432]
[1717429166622,13.3844,164.98,164.92,27.06]
[1717429166623,2.2424,165.0,164.95,2.243]
[1717429167226,9.3024,165.0,164.95,2.243]
[1717429167517,2.2425,164.99,164.94,9.3031]
[1717429168818,9.3025,164.99,164.94,2.2431]
[1717429169717,2.2425,164.99,164.94,2.2431]
[1717429169916,13.2093,165.03,164.96,2.2429]
[1717429170227,2.2424,165.0,164.95,2.243]
[1717429170527,9.3024,165.0,164.95,2.243]
[1717429170708,2.2424,165.0,164.95,2.243]
[1717429170913,2.2423,165.01,164.96,2.2429]
[1717429171229,9.3023,165.01,164.96,2.2429]
[1717429172423,2.2424,165.0,164.96,2.2429]
[1717429172626,2.2423,165.01,164.96,9.3029]
[1717429172826,2.2422,165.02,164.97,2.2427]
[1717429173134,15.7851,165.03,164.98,2.2426]
[1717429173433,2.2421,165.02,164.98,2.2426]
[1717429173607,0.2,165.04,165.0,2.2424]
[1717429173809,2.4418,165.04,164.99,2.2424]
[1717429174021,2.4418,165.04,165.0,2.2424]
[1717429174643,2.4418,165.04,164.99,54.3025]
[1717429175214,0.2,165.04,164.99,2.2425]
[1717429175415,9.302,165.03,164.98,2.2426]
[1717429175630,9.302,165.03,164.98,22.2426]
[1717429176151,7.06,165.03,165.0,2.2424]
[1717429177013,7.06,165.03,164.99,2.2425]
[1717429177333,7.06,165.03,165.0,2.2423]
[1717429177732,7.26,165.04,165.0,2.2423]
[1717429177933,0.2,165.04,165.0,2.2423]
[1717429178137,0.2,165.04,165.01,2.2422]
[1717429181155,0.2,165.04,165.0,45.0]
[1717429181330,0.2,165.04,165.02,2.2421]
[1717429182143,0.2,165.04,165.02,47.2421]
[1717429184038,0.2,165.04,165.02,2.2421]
[1717429185158,0.2,165.04,165.01,47.2422]
[1717429185349,0.2,165.04,165.01,54.3022]
[1717429185726,0.2,165.04,165.02,2.2421]
[1717429186863,0.2,165.04,165.01,45.0]
[1717429187022,0.2,165.04,165.01,2.2422]
[1717429190635,0.2,165.04,165.02,2.242]
[1717429193165,0.2,165.04,165.01,2.2422]
[1717429193630,0.2,165.04,165.02,2.2421]
[1717429194028,0.2,165.04,165.01,2.2422]
[1717429194448,0.2,165.04,165.02,2.2421]
[1717429194636,0.2,165.04,164.99,20.0]
[1717429194852,13.8517,165.04,165.0,2.2424]
[1717429195247,13.8517,165.04,165.01,2.2422]
[1717429197065,7.26,165.04,165.01,2.2422]
[1717429197359,0.2,165.04,165.02,2.242]
[1717429197659,0.2,165.04,165.02,2.2421]
[1717429197869,0.2,165.04,165.03,2.242]
[1717429203073,0.2,165.04,165.03,9.302]
[1717429203279,0.2,165.04,165.03,54.302]
[1717429203651,0.2,165.04,165.03,67.924]
[1717429203862,0.2,165.04,165.03,94.82]
[1717429204155,0.2,165.04,165.03,71.726]
[1717429204561,0.2,165.04,165.03,67.242]
[1717429204884,0.2,165.04,165.03,74.302]
[1717429206353,0.2,165.04,165.03,78.786]
[1717429206963,0.2,165.04,165.03,67.242]
[1717429207161,0.2,165.04,165.03,29.302]
[1717429207753,0.2,165.04,165.03,22.242]
[1717429207975,0.2,165.04,165.03,2.242]
[1717429208658,0.2,165.04,165.03,9.302]
[1717429208853,0.2,165.04,165.03,78.786]
[1717429209487,0.2,165.04,165.03,85.852]
[1717429209866,0.2,165.04,165.03,79.126]
[1717429210763,0.2,165.04,165.03,117.237]
[1717429213163,0.2,165.04,165.03,101.0706]
[1717429214481,0.2,165.04,165.03,87.76]
[1717429214676,0.2,165.04,165.03,94.82]
[1717429215860,0.2,165.04,165.03,87.76]
[1717429216085,0.2,165.04,165.03,94.82]
[1717429216496,0.2,165.04,165.03,87.76]
[1717429216691,0.2,165.04,165.03,94.82]
[1717429217277,0.2,165.04,165.03,87.76]
[1717429217689,0.2,165.04,165.03,71.726]
[1717429217894,0.2,165.04,165.03,78.786]
[1717429218986,0.2,165.04,165.03,71.726]
[1717429219295,0.2,165.04,165.03,78.786]
[1717429219498,0.2,165.04,165.03,94.48]
[1717429219697,0.2,165.04,165.03,94.82]
[1717429220399,0.2,165.04,165.03,87.76]
[1717429220606,0.2,165.04,165.03,94.82]
[1717429221696,0.2,165.04,165.03,101.88]
[1717429221909,0.2,165.04,165.03,108.1095]
[1717429222579,0.2,165.04,165.03,101.0495]
[1717429222777,0.2,165.04,165.03,94.82]
[1717429223185,0.2,165.04,165.03,108.2684]
[1717429223392,0.2,165.14,165.1,2.2409]
[1717429223590,6.5545,165.14,165.11,2.2409]
[1717429223783,6.3545,165.13,165.11,2.2409]
[1717429223988,6.3545,165.13,165.1,2.241]
[1717429224379,0.2,165.14,165.09,45.0]
[1717429224580,0.2,165.14,165.12,9.3007]
[1717429225490,0.2,165.14,165.13,2.2406]
[1717429225685,0.2,165.14,165.13,3.36577869]
[1717429225886,0.2,165.14,165.13,9.3006]
[1717429226205,0.2,165.14,165.13,29.3006]
[1717429226502,0.2,165.14,165.13,30.42616549]
[1717429227784,0.2,165.14,165.13,68.36616549]
[1717429227982,0.2,165.14,165.13,75.42616549]
[1717429228286,0.2,165.14,165.13,78.7819]
[1717429228507,0.2,165.14,165.13,79.1219]
[1717429229981,0.2,165.14,165.13,67.2406]
[1717429230313,0.2,165.14,165.13,74.3006]
[1717429230691,0.2,165.14,165.13,67.2406]
[1717429230891,0.2,165.14,165.13,74.3006]
[1717429232496,0.2,165.14,165.13,2.2406]
[1717429233600,0.2,165.14,165.12,2.2407]
[1717429233922,0.2,165.14,165.11,7.06]
[1717429234099,0.2,165.14,165.12,7.06]
[1717429234308,0.2,165.14,165.1,4.4819]
[1717429234309,0.2,165.14,165.13,9.3006]
[1717429235798,0.2,165.14,165.13,2.2406]
[1717429236289,0.2,165.14,165.13,9.3006]
[1717429237021,0.2,165.14,165.13,2.2406]
[1717429239316,0.2,165.14,165.13,9.3006]
[1717429240027,0.2,165.14,165.13,54.3006]
[1717429240226,0.2,165.14,165.13,47.2406]
[1717429240534,0.2,165.14,165.13,54.3006]
[1717429240707,0.2,165.14,165.13,9.3006]
[1717429243611,0.2,165.14,165.13,54.3006]
[1717429248227,0.2,165.14,165.13,9.3006]
[1717429248611,0.2,165.14,165.13,2.2406]
[1717429249014,0.2,165.14,165.13,9.3006]
[1717429250718,0.2,165.14,165.13,54.3006]
[1717429251117,0.2,165.14,165.13,58.7819]
[1717429251321,0.2,165.14,165.13,78.7819]
[1717429252335,0.2,165.14,165.13,47.2406]
[1717429252636,0.2,165.14,165.13,74.3006]
[1717429254046,0.2,165.14,165.13,67.2406]
[1717429254239,0.2,165.14,165.13,74.3006]
[1717429255145,0.2,165.14,165.13,67.2406]
[1717429255362,0.2,165.14,165.13,74.3006]
[1717429256344,0.2,165.14,165.13,54.3006]
[1717429256559,0.2,165.14,165.13,47.2406]
[1717429256754,0.2,165.14,165.13,54.3006]
[1717429258183,0.2,165.14,165.13,47.2406]
[1717429258367,0.2,165.14,165.13,54.3006]
[1717429258671,0.2,165.14,165.13,58.7819]
[1717429259047,0.2,165.14,165.13,58.9519]
[1717429260286,0.2,165.14,165.13,47.2406]
[1717429260457,0.2,165.14,165.13,2.2406]
[1717429262065,0.2,165.14,165.12,2.2407]
[1717429262269,0.2,165.14,165.11,2.2408]
[1717429262449,6.7643,165.14,165.11,2.2408]
[1717429264972,6.7643,165.14,165.09,20.0]
[1717429264973,6.4174,165.13,165.09,20.0]
[1717429265277,6.4174,165.12,165.09,2.241]
[1717429265771,6.598,165.12,165.08,2.2412]
[1717429266150,23.6293,165.13,165.08,2.2412]
[1717429266357,6.4637,165.11,165.08,2.2412]
[1717429266558,6.4637,165.11,165.09,2.2411]
[1717429267266,6.4637,165.13,165.1,2.241]
[1717429267759,6.4637,165.13,165.09,2.2411]
[1717429267957,2.4405,165.14,165.09,9.3011]